fUST/lending_fUST_20260508
["ID","MTS","AMOUNT","RATE_DAILY","PERIOD"]
[421827887,1778193038000,-500.0,0.00010958,2]
[421827889,1778193038000,-500.0,0.00010958,2]
[421827879,1778193038000,-374967.0053429,0.00010858,2]
[421827840,1778193038000,-12871.72725315,0.0001,2]
[421827821,1778193038000,-293.44077171,9.98e-05,2]
[421827835,1778193038000,-5238.69090126,0.0001,2]
[421827891,1778193038000,-500.0,0.00010958,2]
[421827803,1778193038000,-300.0,9.978e-05,2]
[421827805,1778193038000,-300.0,9.978e-05,2]
[421827809,1778193038000,-10228.16695051,9.98e-05,2]
[421827793,1778193038000,-2864.70117904,9.681e-05,2]
[421827807,1778193038000,-300.0,9.978e-05,2]
[421827796,1778193038000,-418.39089773,9.781e-05,2]
[421827813,1778193038000,-500.0,9.98e-05,2]
[421827811,1778193038000,-500.0,9.98e-05,2]
[421827800,1778193038000,-300.0,9.978e-05,2]
[421827798,1778193038000,-1200.0,9.977e-05,2]
[421827801,1778193038000,-300.0,9.978e-05,2]
[421827815,1778193038000,-500.0,9.98e-05,2]
[421827827,1778193038000,-456.92370044,9.98e-05,2]
[421827825,1778193038000,-500.0,9.98e-05,2]
[421827833,1778193038000,-543135.63495593,9.981e-05,2]
[421827831,1778193038000,-500.0,9.98e-05,2]
[421827819,1778193038000,-500.0,9.98e-05,2]
[421827829,1778193038000,-500.0,9.98e-05,2]
[421827823,1778193038000,-500.0,9.98e-05,2]
[421827817,1778193038000,-500.0,9.98e-05,2]
[421827839,1778193038000,-12511.54933427,0.0001,2]
[421827837,1778193038000,-10039.2394675,0.0001,2]
[421827852,1778193038000,-300.0,0.00010282,2]
[421827894,1778193038000,-500.0,0.00010958,2]
[421827938,1778193038000,-672.38,0.00010958,2]
[421827895,1778193038000,-500.0,0.00010958,2]
[421827953,1778193038000,-676.42,0.00010958,2]
[421827967,1778193038000,-500.0,0.00010958,2]
[421827957,1778193038000,-500.0,0.00010958,2]
[421827959,1778193038000,-639.85,0.00010958,2]
[421827965,1778193038000,-500.0,0.00010958,2]
[421827961,1778193038000,-500.0,0.00010958,2]
[421827970,1778193038000,-1307.16,0.00010958,2]
[421827963,1778193038000,-2070.95,0.00010958,2]
[421827968,1778193038000,-500.0,0.00010958,2]
[421827975,1778193038000,-11103.3,0.00010958,2]
[421827983,1778193038000,-518.88,0.00010958,2]
[421827973,1778193038000,-204.55,0.00010958,2]
[421827987,1778193038000,-500.0,0.00010958,2]
[421827989,1778193038000,-659.82,0.00010958,2]
[421827979,1778193038000,-2132.63,0.00010958,2]
[421827991,1778193038000,-500.0,0.00010958,2]
[421827977,1778193038000,-1284.31,0.00010958,2]
[421827981,1778193038000,-1180.57,0.00010958,2]
[421827993,1778193038000,-551.35,0.00010958,2]
[421827997,1778193038000,-500.0,0.00010958,2]
[421827995,1778193038000,-1159.22,0.00010958,2]
[421827999,1778193038000,-626.53,0.00010958,2]
[421827900,1778193038000,-611.65,0.00010958,2]
[421827954,1778193038000,-500.0,0.00010958,2]
[421827946,1778193038000,-1601.9,0.00010958,2]
[421827985,1778193038000,-508.14,0.00010958,2]
[421827948,1778193038000,-500.0,0.00010958,2]
[421827951,1778193038000,-626.1,0.00010958,2]
[421827898,1778193038000,-879.66,0.00010958,2]
[421827902,1778193038000,-500.0,0.00010958,2]
[421827912,1778193038000,-868.82,0.00010958,2]
[421827914,1778193038000,-500.0,0.00010958,2]
[421827908,1778193038000,-500.0,0.00010958,2]
[421827904,1778193038000,-500.0,0.00010958,2]
[421827910,1778193038000,-500.0,0.00010958,2]
[421827916,1778193038000,-500.0,0.00010958,2]
[421827918,1778193038000,-871.28,0.00010958,2]
[421827922,1778193038000,-500.0,0.00010958,2]
[421827906,1778193038000,-500.0,0.00010958,2]
[421827934,1778193038000,-500.0,0.00010958,2]
[421827931,1778193038000,-500.0,0.00010958,2]
[421827926,1778193038000,-500.0,0.00010958,2]
[421827936,1778193038000,-901.81,0.00010958,2]
[421827928,1778193038000,-500.0,0.00010958,2]
[421827932,1778193038000,-500.0,0.00010958,2]
[421827924,1778193038000,-504.45,0.00010958,2]
[421828001,1778193038000,-500.0,0.00010958,2]
[421827942,1778193038000,-557.41,0.00010958,2]
[421827940,1778193038000,-851.98,0.00010958,2]
[421827920,1778193038000,-500.0,0.00010958,2]
[421827944,1778193038000,-500.0,0.00010958,2]
[421828039,1778193039000,-500.0,0.00011232,2]
[421828037,1778193039000,-500.0,0.00011232,2]
[421828059,1778193039000,-871.28,0.00011232,2]
[421828032,1778193039000,-500.0,0.00011232,2]
[421828043,1778193039000,-500.0,0.00011232,2]
[421828044,1778193039000,-500.0,0.00011232,2]
[421828051,1778193039000,-500.0,0.00011232,2]
[421828052,1778193039000,-500.0,0.00011232,2]
[421828060,1778193039000,-500.0,0.00011232,2]
[421828048,1778193039000,-500.0,0.00011232,2]
[421828028,1778193039000,-155.0,0.00011231,2]
[421828047,1778193039000,-879.66,0.00011232,2]
[421828040,1778193039000,-500.0,0.00011232,2]
[421828006,1778193039000,-634.73,0.00010958,2]
[421828035,1778193039000,-500.0,0.00011232,2]
[421828026,1778193039000,-160.0,0.00011161,2]
[421828024,1778193039000,-160.0,0.00011161,2]
[421828013,1778193039000,-954.24,0.00010958,2]
[421828016,1778193039000,-2843.61,0.00010958,2]
[421828012,1778193039000,-500.0,0.00010958,2]
[421828018,1778193039000,-500.0,0.00010958,2]
[421828022,1778193039000,-161.57704075,0.00011161,2]
[421828020,1778193039000,-160.0,0.00011161,2]
[421828010,1778193039000,-979.59,0.00010958,2]
[421828008,1778193039000,-1594.6,0.00010958,2]
[421828003,1778193039000,-901.78,0.00010958,2]
[421828057,1778193039000,-500.0,0.00011232,2]
[421828030,1778193039000,-1544.2926,0.00011232,2]
[421828055,1778193039000,-500.0,0.00011232,2]
[421828077,1778193039000,-851.98,0.00011232,2]
[421828062,1778193039000,-504.45,0.00011232,2]
[421828106,1778193039000,-500.0,0.00011232,2]
[421828063,1778193039000,-500.0,0.00011232,2]
[421828108,1778193039000,-1307.16,0.00011232,2]
[421828101,1778193039000,-500.0,0.00011232,2]
[421828104,1778193039000,-500.0,0.00011232,2]
[421828110,1778193039000,-11103.3,0.00011232,2]
[421828099,1778193039000,-2070.95,0.00011232,2]
[421828096,1778193039000,-639.85,0.00011232,2]
[421828094,1778193039000,-500.0,0.00011232,2]
[421828098,1778193039000,-500.0,0.00011232,2]
[421828092,1778193039000,-500.0,0.00011232,2]
[421828090,1778193039000,-676.42,0.00011232,2]
[421828073,1778193039000,-901.81,0.00011232,2]
[421828071,1778193039000,-500.0,0.00011232,2]
[421828112,1778193039000,-335.36971137,0.00011232,2]
[421828069,1778193039000,-500.0,0.00011232,2]
[421828058,1778193039000,-500.0,0.00011232,2]
[421828067,1778193039000,-500.0,0.00011232,2]
[421828054,1778193039000,-500.0,0.00011232,2]
[421828065,1778193039000,-500.0,0.00011232,2]
[421828075,1778193039000,-672.38,0.00011232,2]
[421828056,1778193039000,-868.82,0.00011232,2]
[421828083,1778193039000,-1601.9,0.00011232,2]
[421828081,1778193039000,-500.0,0.00011232,2]
[421828088,1778193039000,-626.1,0.00011232,2]
[421828085,1778193039000,-240.25,0.00011232,2]
[421828079,1778193039000,-557.41,0.00011232,2]
[421828061,1778193039000,-500.0,0.00011232,2]
[421828195,1778193040000,-152.76310092,0.00011232,2]
[421828192,1778193040000,-377.91572962,0.00011232,2]
[421828190,1778193040000,-571.02455901,0.00011232,2]
[421828626,1778193043000,-979.59,0.00011232,2]
[421828629,1778193043000,-2843.61,0.00011232,2]
[421828636,1778193043000,-500.0,0.00011506,2]
[421828627,1778193043000,-500.0,0.00011232,2]
[421828628,1778193043000,-954.24,0.00011232,2]
[421828635,1778193043000,-500.0,0.00011506,2]
[421828639,1778193043000,-500.0,0.00011506,2]
[421828655,1778193043000,-500.0,0.00011506,2]
[421828649,1778193043000,-879.66,0.00011506,2]
[421828651,1778193043000,-500.0,0.00011506,2]
[421828653,1778193043000,-500.0,0.00011506,2]
[421828645,1778193043000,-500.0,0.00011506,2]
[421828633,1778193043000,-1544.2926,0.00011506,2]
[421828647,1778193043000,-500.0,0.00011506,2]
[421828630,1778193043000,-500.0,0.00011232,2]
[421828606,1778193043000,-659.82,0.00011232,2]
[421828624,1778193043000,-1594.6,0.00011232,2]
[421828641,1778193043000,-500.0,0.00011506,2]
[421828593,1778193043000,-1979.86689908,0.00011232,2]
[421828603,1778193043000,-500.0,0.00011232,2]
[421828597,1778193043000,-518.88,0.00011232,2]
[421828610,1778193043000,-551.35,0.00011232,2]
[421828595,1778193043000,-1180.57,0.00011232,2]
[421828631,1778193043000,-720.0,0.0001131,2]
[421828608,1778193043000,-500.0,0.00011232,2]
[421828614,1778193043000,-500.0,0.00011232,2]
[421828599,1778193043000,-508.14,0.00011232,2]
[421828618,1778193043000,-500.0,0.00011232,2]
[421828620,1778193043000,-901.78,0.00011232,2]
[421828616,1778193043000,-626.53,0.00011232,2]
[421828622,1778193043000,-634.73,0.00011232,2]
[421828612,1778193043000,-1159.22,0.00011232,2]
[421828643,1778193043000,-500.0,0.00011506,2]
[421828713,1778193043000,-500.0,0.00011506,2]
[421828657,1778193043000,-500.0,0.00011506,2]
[421828703,1778193043000,-639.85,0.00011506,2]
[421828694,1778193043000,-500.0,0.00011506,2]
[421828692,1778193043000,-557.41,0.00011506,2]
[421828705,1778193043000,-500.0,0.00011506,2]
[421828707,1778193043000,-2070.95,0.00011506,2]
[421828696,1778193043000,-1601.9,0.00011506,2]
[421828702,1778193043000,-500.0,0.00011506,2]
[421828711,1778193043000,-500.0,0.00011506,2]
[421828715,1778193043000,-1307.16,0.00011506,2]
[421828717,1778193043000,-11103.3,0.00011506,2]
[421828723,1778193043000,-1180.57,0.00011506,2]
[421828721,1778193043000,-2132.63,0.00011506,2]
[421828725,1778193043000,-518.88,0.00011506,2]
[421828659,1778193043000,-500.0,0.00011506,2]
[421828709,1778193043000,-500.0,0.00011506,2]
[421828698,1778193043000,-626.1,0.00011506,2]
[421828719,1778193043000,-1284.31,0.00011506,2]
[421828690,1778193043000,-851.98,0.00011506,2]
[421828700,1778193043000,-676.42,0.00011506,2]
[421828663,1778193043000,-500.0,0.00011506,2]
[421828679,1778193043000,-500.0,0.00011506,2]
[421828675,1778193043000,-500.0,0.00011506,2]
[421828673,1778193043000,-504.45,0.00011506,2]
[421828665,1778193043000,-500.0,0.00011506,2]
[421828677,1778193043000,-500.0,0.00011506,2]
[421828667,1778193043000,-871.28,0.00011506,2]
[421828688,1778193043000,-672.38,0.00011506,2]
[421828681,1778193043000,-500.0,0.00011506,2]
[421828684,1778193043000,-500.0,0.00011506,2]
[421828661,1778193043000,-868.82,0.00011506,2]
[421828686,1778193043000,-901.81,0.00011506,2]
[421828669,1778193043000,-500.0,0.00011506,2]
[421828671,1778193043000,-500.0,0.00011506,2]
[421828800,1778193044000,-500.0,0.0001178,2]
[421828790,1778193044000,-879.66,0.0001178,2]
[421828801,1778193044000,-868.82,0.0001178,2]
[421828805,1778193044000,-500.0,0.0001178,2]
[421828807,1778193044000,-871.28,0.0001178,2]
[421828796,1778193044000,-500.0,0.0001178,2]
[421828811,1778193044000,-500.0,0.0001178,2]
[421828836,1778193044000,-1601.9,0.0001178,2]
[421828794,1778193044000,-193.54,0.0001178,2]
[421828792,1778193044000,-500.0,0.0001178,2]
[421828788,1778193044000,-500.0,0.0001178,2]
[421828803,1778193044000,-500.0,0.0001178,2]
[421828816,1778193044000,-500.0,0.0001178,2]
[421828809,1778193044000,-500.0,0.0001178,2]
[421828814,1778193044000,-504.45,0.0001178,2]
[421828820,1778193044000,-500.0,0.0001178,2]
[421828818,1778193044000,-500.0,0.0001178,2]
[421828834,1778193044000,-500.0,0.0001178,2]
[421828822,1778193044000,-500.0,0.0001178,2]
[421828828,1778193044000,-672.38,0.0001178,2]
[421828824,1778193044000,-500.0,0.0001178,2]
[421828826,1778193044000,-901.81,0.0001178,2]
[421828830,1778193044000,-851.98,0.0001178,2]
[421828832,1778193044000,-557.41,0.0001178,2]
[421828785,1778193044000,-500.0,0.0001178,2]
[421828798,1778193044000,-500.0,0.0001178,2]
[421828780,1778193044000,-500.0,0.0001178,2]
[421828752,1778193044000,-500.0,0.00011506,2]
[421828772,1778193044000,-500.0,0.00011779,2]
[421828727,1778193044000,-508.14,0.00011506,2]
[421828731,1778193044000,-659.82,0.00011506,2]
[421828735,1778193044000,-551.35,0.00011506,2]
[421828729,1778193044000,-500.0,0.00011506,2]
[421828733,1778193044000,-500.0,0.00011506,2]
[421828736,1778193044000,-1159.22,0.00011506,2]
[421828738,1778193044000,-500.0,0.00011506,2]
[421828740,1778193044000,-626.53,0.00011506,2]
[421828742,1778193044000,-500.0,0.00011506,2]
[421828750,1778193044000,-979.59,0.00011506,2]
[421828748,1778193044000,-1594.6,0.00011506,2]
[421828746,1778193044000,-634.73,0.00011506,2]
[421828776,1778193044000,-465.62,0.0001178,2]
[421828756,1778193044000,-2843.61,0.00011506,2]
[421828754,1778193044000,-954.24,0.00011506,2]
[421828758,1778193044000,-500.0,0.00011506,2]
[421828761,1778193044000,-500.0,0.00011779,2]
[421828759,1778193044000,-151.0,0.000116,2]
[421828763,1778193044000,-500.0,0.00011779,2]
[421828765,1778193044000,-500.0,0.00011779,2]
[421828768,1778193044000,-500.0,0.00011779,2]
[421828769,1778193044000,-419.20110245,0.00011779,2]
[421828774,1778193044000,-1544.2926,0.0001178,2]
[421828783,1778193044000,-500.0,0.0001178,2]
[421828778,1778193044000,-500.0,0.0001178,2]
[421828782,1778193044000,-500.0,0.0001178,2]
[421828744,1778193044000,-901.78,0.00011506,2]
[421828838,1778193044000,-626.1,0.0001178,2]
[421828874,1778193044000,-225.55,0.0001178,2]
[421828842,1778193044000,-500.0,0.0001178,2]
[421828902,1778193044000,-493.70125932,0.00011781,2]
[421828926,1778193044000,-442.0,0.00011881,2]
[421828930,1778193044000,-1544.2926,0.00012054,2]
[421828928,1778193044000,-151.0,0.00012,2]
[421828932,1778193044000,-500.0,0.00012054,2]
[421828922,1778193044000,-2215.0,0.00011881,2]
[421828934,1778193044000,-500.0,0.00012054,2]
[421828924,1778193044000,-185.0,0.00011881,2]
[421828937,1778193044000,-500.0,0.00012054,2]
[421828939,1778193044000,-500.0,0.00012054,2]
[421828943,1778193044000,-500.0,0.00012054,2]
[421828941,1778193044000,-500.0,0.00012054,2]
[421828906,1778193044000,-1411.0,0.00011881,2]
[421828951,1778193044000,-500.0,0.00012054,2]
[421828947,1778193044000,-500.0,0.00012054,2]
[421828953,1778193044000,-500.0,0.00012054,2]
[421828958,1778193044000,-500.0,0.00012054,2]
[421828962,1778193044000,-871.28,0.00012054,2]
[421828960,1778193044000,-500.0,0.00012054,2]
[421828956,1778193044000,-868.82,0.00012054,2]
[421828964,1778193044000,-500.0,0.00012054,2]
[421828966,1778193044000,-500.0,0.00012054,2]
[421828968,1778193044000,-504.45,0.00012054,2]
[421828970,1778193044000,-500.0,0.00012054,2]
[421828972,1778193044000,-500.0,0.00012054,2]
[421828840,1778193044000,-676.42,0.0001178,2]
[421828949,1778193044000,-500.0,0.00012054,2]
[421828900,1778193044000,-500.0,0.0001178,2]
[421828945,1778193044000,-879.66,0.00012054,2]
[421828896,1778193044000,-954.24,0.0001178,2]
[421828844,1778193044000,-639.85,0.0001178,2]
[421828904,1778193044000,-151.0,0.000118,2]
[421828848,1778193044000,-2070.95,0.0001178,2]
[421828850,1778193044000,-500.0,0.0001178,2]
[421828846,1778193044000,-500.0,0.0001178,2]
[421828852,1778193044000,-500.0,0.0001178,2]
[421828862,1778193044000,-2132.63,0.0001178,2]
[421828864,1778193044000,-1180.57,0.0001178,2]
[421828860,1778193044000,-1284.31,0.0001178,2]
[421828866,1778193044000,-518.88,0.0001178,2]
[421828854,1778193044000,-500.0,0.0001178,2]
[421828858,1778193044000,-11103.3,0.0001178,2]
[421828868,1778193044000,-508.14,0.0001178,2]
[421828856,1778193044000,-1307.16,0.0001178,2]
[421828888,1778193044000,-634.73,0.0001178,2]
[421828872,1778193044000,-659.82,0.0001178,2]
[421828884,1778193044000,-500.0,0.0001178,2]
[421828876,1778193044000,-551.35,0.0001178,2]
[421828881,1778193044000,-500.0,0.0001178,2]
[421828882,1778193044000,-626.53,0.0001178,2]
[421828879,1778193044000,-1159.22,0.0001178,2]
[421828886,1778193044000,-901.78,0.0001178,2]
[421828894,1778193044000,-500.0,0.0001178,2]
[421828891,1778193044000,-1594.6,0.0001178,2]
[421828870,1778193044000,-500.0,0.0001178,2]
[421828892,1778193044000,-979.59,0.0001178,2]
[421828898,1778193044000,-2843.61,0.0001178,2]
[421829061,1778193045000,-1544.2926,0.00012328,2]
[421829047,1778193045000,-500.0,0.00012054,2]
[421829053,1778193045000,-1560.0,0.0001206,2]
[421829045,1778193045000,-979.59,0.00012054,2]
[421829049,1778193045000,-954.24,0.00012054,2]
[421829043,1778193045000,-1594.6,0.00012054,2]
[421829052,1778193045000,-500.0,0.00012054,2]
[421829057,1778193045000,-13747.70426769,0.00012216,2]
[421829055,1778193045000,-151.0,0.000121,2]
[421829041,1778193045000,-634.73,0.00012054,2]
[421829051,1778193045000,-2843.61,0.00012054,2]
[421829058,1778193045000,-151.0,0.000123,2]
[421829063,1778193045000,-500.0,0.00012328,2]
[421829083,1778193045000,-500.0,0.00012328,2]
[421829071,1778193045000,-500.0,0.00012328,2]
[421829080,1778193045000,-393.62,0.00012328,2]
[421829079,1778193045000,-500.0,0.00012328,2]
[421829078,1778193045000,-500.0,0.00012328,2]
[421829067,1778193045000,-500.0,0.00012328,2]
[421829081,1778193045000,-868.82,0.00012328,2]
[421829082,1778193045000,-500.0,0.00012328,2]
[421829075,1778193045000,-879.66,0.00012328,2]
[421829076,1778193045000,-500.0,0.00012328,2]
[421829073,1778193045000,-500.0,0.00012328,2]
[421829069,1778193045000,-500.0,0.00012328,2]
[421829085,1778193045000,-871.28,0.00012328,2]
[421829039,1778193045000,-901.78,0.00012054,2]
[421829065,1778193045000,-500.0,0.00012328,2]
[421829023,1778193045000,-508.14,0.00012054,2]
[421828979,1778193045000,-500.0,0.00012054,2]
[421829037,1778193045000,-500.0,0.00012054,2]
[421828974,1778193045000,-500.0,0.00012054,2]
[421828977,1778193045000,-500.0,0.00012054,2]
[421828981,1778193045000,-901.81,0.00012054,2]
[421828983,1778193045000,-672.38,0.00012054,2]
[421828985,1778193045000,-851.98,0.00012054,2]
[421828986,1778193045000,-557.41,0.00012054,2]
[421828989,1778193045000,-500.0,0.00012054,2]
[421828995,1778193045000,-676.42,0.00012054,2]
[421828997,1778193045000,-500.0,0.00012054,2]
[421828993,1778193045000,-626.1,0.00012054,2]
[421828991,1778193045000,-1601.9,0.00012054,2]
[421828999,1778193045000,-639.85,0.00012054,2]
[421829005,1778193045000,-500.0,0.00012054,2]
[421829021,1778193045000,-518.88,0.00012054,2]
[421829003,1778193045000,-2070.95,0.00012054,2]
[421829011,1778193045000,-1307.16,0.00012054,2]
[421829001,1778193045000,-500.0,0.00012054,2]
[421829007,1778193045000,-500.0,0.00012054,2]
[421829015,1778193045000,-1284.31,0.00012054,2]
[421829013,1778193045000,-11103.3,0.00012054,2]
[421829017,1778193045000,-2132.63,0.00012054,2]
[421829027,1778193045000,-659.82,0.00012054,2]
[421829029,1778193045000,-551.35,0.00012054,2]
[421829031,1778193045000,-1159.22,0.00012054,2]
[421829035,1778193045000,-626.53,0.00012054,2]
[421829033,1778193045000,-500.0,0.00012054,2]
[421829025,1778193045000,-500.0,0.00012054,2]
[421829019,1778193045000,-1180.57,0.00012054,2]
[421829009,1778193045000,-500.0,0.00012054,2]
[421829089,1778193045000,-500.0,0.00012328,2]
[421829087,1778193045000,-500.0,0.00012328,2]
[421829099,1778193045000,-500.0,0.00012328,2]
[421829168,1778193045000,-634.73,0.00012328,2]
[421829166,1778193045000,-901.78,0.00012328,2]
[421829170,1778193045000,-1594.6,0.00012328,2]
[421829174,1778193045000,-500.0,0.00012328,2]
[421829171,1778193045000,-979.59,0.00012328,2]
[421829178,1778193045000,-500.0,0.00012328,2]
[421829176,1778193045000,-954.24,0.00012328,2]
[421829180,1778193045000,-2843.61,0.00012328,2]
[421829184,1778193045000,-1317.35,0.00012329,2]
[421829182,1778193045000,-1580.81,0.00012329,2]
[421829186,1778193045000,-1097.79,0.00012329,2]
[421829188,1778193045000,-914.82,0.00012329,2]
[421829190,1778193045000,-401.291,0.00012336,2]
[421829162,1778193045000,-626.53,0.00012328,2]
[421829203,1778193045000,-500.0,0.00012602,2]
[421829210,1778193045000,-500.0,0.00012602,2]
[421829194,1778193045000,-151.0,0.000124,2]
[421829197,1778193045000,-864.0,0.00012441,2]
[421829209,1778193045000,-500.0,0.00012602,2]
[421829205,1778193045000,-500.0,0.00012602,2]
[421829207,1778193045000,-500.0,0.00012602,2]
[421829199,1778193045000,-1544.2926,0.00012602,2]
[421829201,1778193045000,-500.0,0.00012602,2]
[421829212,1778193045000,-879.66,0.00012602,2]
[421829214,1778193045000,-500.0,0.00012602,2]
[421829216,1778193045000,-500.0,0.00012602,2]
[421829218,1778193045000,-500.0,0.00012602,2]
[421829096,1778193045000,-500.0,0.00012328,2]
[421829192,1778193045000,-155.0,0.00012354,2]
[421829164,1778193045000,-500.0,0.00012328,2]
[421829220,1778193045000,-868.82,0.00012602,2]
[421829158,1778193045000,-1159.22,0.00012328,2]
[421829160,1778193045000,-500.0,0.00012328,2]
[421829093,1778193045000,-500.0,0.00012328,2]
[421829104,1778193045000,-500.0,0.00012328,2]
[421829106,1778193045000,-901.81,0.00012328,2]
[421829101,1778193045000,-500.0,0.00012328,2]
[421829108,1778193045000,-672.38,0.00012328,2]
[421829111,1778193045000,-851.98,0.00012328,2]
[421829115,1778193045000,-500.0,0.00012328,2]
[421829113,1778193045000,-557.41,0.00012328,2]
[421829123,1778193045000,-500.0,0.00012328,2]
[421829126,1778193045000,-639.85,0.00012328,2]
[421829130,1778193045000,-2070.95,0.00012328,2]
[421829128,1778193045000,-500.0,0.00012328,2]
[421829119,1778193045000,-626.1,0.00012328,2]
[421829091,1778193045000,-504.45,0.00012328,2]
[421829117,1778193045000,-1601.9,0.00012328,2]
[421829156,1778193045000,-551.35,0.00012328,2]
[421829144,1778193045000,-2132.63,0.00012328,2]
[421829142,1778193045000,-1284.31,0.00012328,2]
[421829140,1778193045000,-11103.3,0.00012328,2]
[421829121,1778193045000,-676.42,0.00012328,2]
[421829152,1778193045000,-500.0,0.00012328,2]
[421829154,1778193045000,-659.82,0.00012328,2]
[421829148,1778193045000,-518.88,0.00012328,2]
[421829146,1778193045000,-1180.57,0.00012328,2]
[421829138,1778193045000,-1307.16,0.00012328,2]
[421829136,1778193045000,-500.0,0.00012328,2]
[421829134,1778193045000,-500.0,0.00012328,2]
[421829132,1778193045000,-500.0,0.00012328,2]
[421829150,1778193045000,-508.14,0.00012328,2]
[421829293,1778193046000,-500.0,0.00012602,2]
[421829307,1778193046000,-500.0,0.00012602,2]
[421829299,1778193046000,-1594.6,0.00012602,2]
[421829305,1778193046000,-954.24,0.00012602,2]
[421829289,1778193046000,-1159.22,0.00012602,2]
[421829276,1778193046000,-11103.3,0.00012602,2]
[421829291,1778193046000,-626.53,0.00012602,2]
[421829303,1778193046000,-500.0,0.00012602,2]
[421829290,1778193046000,-500.0,0.00012602,2]
[421829288,1778193046000,-551.35,0.00012602,2]
[421829287,1778193046000,-659.82,0.00012602,2]
[421829301,1778193046000,-979.59,0.00012602,2]
[421829297,1778193046000,-634.73,0.00012602,2]
[421829319,1778193046000,-267.513,0.00012876,2]
[421829310,1778193046000,-2843.61,0.00012602,2]
[421829311,1778193046000,-1560.0,0.00012608,2]
[421829323,1778193046000,-500.0,0.00012876,2]
[421829325,1778193046000,-500.0,0.00012876,2]
[421829315,1778193046000,-291.56952714,0.00012793,2]
[421829327,1778193046000,-500.0,0.00012876,2]
[421829329,1778193046000,-500.0,0.00012876,2]
[421829317,1778193046000,-1544.2926,0.00012876,2]
[421829313,1778193046000,-5478.79921768,0.0001279,2]
[421829321,1778193046000,-500.0,0.00012876,2]
[421829335,1778193046000,-500.0,0.00012876,2]
[421829333,1778193046000,-879.66,0.00012876,2]
[421829272,1778193046000,-500.0,0.00012602,2]
[421829295,1778193046000,-901.78,0.00012602,2]
[421829274,1778193046000,-1307.16,0.00012602,2]
[421829262,1778193046000,-639.85,0.00012602,2]
[421829286,1778193046000,-500.0,0.00012602,2]
[421829230,1778193046000,-500.0,0.00012602,2]
[421829236,1778193046000,-500.0,0.00012602,2]
[421829234,1778193046000,-500.0,0.00012602,2]
[421829232,1778193046000,-504.45,0.00012602,2]
[421829228,1778193046000,-500.0,0.00012602,2]
[421829238,1778193046000,-500.0,0.00012602,2]
[421829224,1778193046000,-500.0,0.00012602,2]
[421829222,1778193046000,-500.0,0.00012602,2]
[421829226,1778193046000,-871.28,0.00012602,2]
[421829240,1778193046000,-500.0,0.00012602,2]
[421829242,1778193046000,-500.0,0.00012602,2]
[421829252,1778193046000,-500.0,0.00012602,2]
[421829256,1778193046000,-626.1,0.00012602,2]
[421829270,1778193046000,-500.0,0.00012602,2]